[Event "Marshall CC FIDE Premier April 2024"]
[Site "New York"]
[Date "2024.04.14"]
[Round "3.5"]
[White "Shvarts, Tim"]
[Black "Lin, Bryan Enming"]
[Result "0-1"]
[ECO "E90"]
[WhiteElo "1783"]
[BlackElo "2087"]
[Annotator "RC"]
[PlyCount "138"]
[EventDate "2024.02.02"]
[EventType "swiss"]
[EventCountry "USA"]
[SourceTitle "playchess.com"]
[Source "ChessBase"]
[SourceQuality "1"]
[TimeControl "5400+30"]

1. d4 {[%emt 0:00:21]} Nf6 {[%emt 0:00:05]} 2. c4 {[%emt 0:00:07]} c5 {[%emt 0:00:09]} 3. d5 {[%emt 0:00:08]} g6 {[%emt 0:00:04]} 4. Nc3 {[%emt 0:00:04]} Bg7 {[%emt 0:00:05]} 5. e4 {[%emt 0:00:06]} d6 {[%emt 0:00:02]} 6. Nf3 {[%emt 0:00:06]} O-O {[%emt 0:00:05]} 7. h3 {[%emt 0:00:03]} e6 {[%emt 0:00:02]} 8. Bd3 {[%emt 0:00:03]} Na6 {[%emt 0:00:10]} 9. O-O {[%emt 0:00:48]} Nc7 {[%emt 0:00:03]} 10. Be3 {[%emt 0:01:07]} exd5 {[%emt 0:00:09]} 11. exd5 {[%emt 1:33:07]} b5 {[%emt 0:00:06]} 12. Qd2 {[%emt 0:00:00]} Re8 {[%emt 0:06:25]} 13. Bg5 {[%emt 0:00:00]} b4 {[%emt 0:01:57]} 14. Ne2 {[%emt 0:00:00]} a5 {[%emt 0:03:50]} 15. Ng3 {[%emt 0:00:00]} Ba6 {[%emt 0:01:02]} 16. Rfe1 {[%emt 0:00:00]} Qd7 {[%emt 0:01:12]} 17. Bf1 {[%emt 0:00:00]} Rxe1 {[%emt 0:01:15]} 18. Rxe1 {[%emt 0:00:00]} Re8 {[%emt 0:00:15]} 19. b3 {[%emt 0:00:00]} Rxe1 {[%emt 0:00:43]} 20. Nxe1 {[%emt 0:00:00]} Nce8 {[%emt 0:03:20]} 21. Qf4 {[%emt 0:00:00]} Kf8 {[%emt 0:02:59]} 22. Qh4 {[%emt 0:00:00]} Kg8 {[%emt 0:02:31]} 23. Qf4 {[%emt 0:00:00]} Kh8 {[%emt 0:02:23]} 24. Ne4 {[%emt 0:00:00]} Ng8 {[%emt 0:01:15]} 25. Qe3 {[%emt 0:00:00]} f5 {[%emt 0:02:51]} 26. Nd2 {[%emt 0:00:00]} h6 {[%emt 0:00:26]} 27. Bf4 {[%emt 0:00:00]} Bc8 {[%emt 0:02:04]} 28. h4 {[%emt 0:00:00]} Nef6 {[%emt 0:00:31]} 29. Be2 {[%emt 0:00:00]} Kh7 {[%emt 0:03:46]} 30. Nd3 {[%emt 0:00:00]} Ne8 {[%emt 0:01:22]} 31. Bh2 {[%emt 0:00:00]} Bd4 {[%emt 0:01:33]} 32. Qg3 {[%emt 0:00:00]} Ngf6 {[%emt 0:01:49]} 33. Nf4 {[%emt 0:00:00]} Qf7 {[%emt 0:00:45]} 34. Qd3 {[%emt 0:00:00]} Nd7 {[%emt 0:04:49]} 35. h5 {[%emt 0:00:00]} g5 {[%emt 0:01:48]} 36. Ne6 {[%emt 0:00:00]} Ne5 {[%emt 0:02:29]} 37. Bxe5 {[%emt 0:00:00]} Bxe5 {[%emt 0:00:32]} 38. Nd8 {[%emt 0:00:00]} Qf6 {[%emt 0:05:14]} 39. Nc6 {[%emt 0:00:00]} Bf4 {[%emt 0:01:26]} 40. g3 {[%emt 0:00:00]} Be5 {[%emt 0:05:07]} 41. Nf3 {[%emt 0:00:00]} Bc3 {[%emt 0:00:57]} 42. Qe3 {[%emt 0:00:00]} Bd7 {[%emt 0:01:59]} 43. Nb8 {[%emt 0:00:00]} Qd8 {[%emt 0:01:35]} 44. Bd3 {[%emt 0:00:00]} Ng7 {[%emt 0:01:36]} 45. Nxd7 {[%emt 0:00:00]} Qxd7 {[%emt 0:00:04]} 46. g4 {[%emt 0:01:58]} Qf7 {[%emt 0:04:53]} 47. gxf5 {[%emt 0:05:13]} Bf6 {[%emt 0:00:17]} 48. Nh2 {[%emt 0:01:23]} Qxh5 {[%emt 0:02:06]} 49. Be2 {[%emt 0:00:52]} Qf7 {[%emt 0:00:29]} 50. Ng4 {[%emt 0:00:33]} h5 {[%emt 0:01:22]} 51. Qh3 {[%emt 0:00:41]} Bd4 {[%emt 0:09:42]} 52. Bd3 {[%emt 0:02:47]} Ne8 {[%emt 0:05:28]} 53. f6+ {[%emt 0:02:22]} Kh8 {[%emt 0:00:04]} 54. Nh6 {[%emt 0:00:30]} Qxf6 {[%emt 0:00:40]} 55. Nf5 {[%emt 0:00:05]} Qf7 {[%emt 0:14:09]} 56. Be2 {[%emt 0:00:51]} Be5 {[%emt 0:03:51]} 57. Nh6 {[%emt 0:03:31]} Qg6 {[%emt 0:01:32]} 58. Qxh5 {[%emt 0:00:30]} Kg7 {[%emt 0:00:25]} 59. Qxg6+ {[%emt 0:01:01]} Kxg6 {[%emt 0:00:01]} 60. Ng8 {[%emt 0:00:53]} Bf6 {[%emt 0:00:57]} 61. Nxf6 {[%emt 0:00:39]} Kxf6 {[%emt 0:00:17]} 62. Kf1 {[%emt 0:00:30]} Ke5 {[%emt 0:00:04]} 63. Ke1 {[%emt 0:00:04]} Kd4 {[%emt 0:00:40]} 64. Kd2 {[%emt 0:00:04]} Nf6 {[%emt 0:00:04]} 65. f3 {[%emt 0:00:17]} Nd7 {[%emt 0:00:17]} 66. Bd1 {[%emt 0:00:45]} Nb6 {[%emt 0:00:10]} 67. Be2 {[%emt 0:00:21]} a4 {[%emt 0:00:02]} 68. Bf1 {[%emt 0:00:15]} a3 {[%emt 0:00:08]} 69. Be2 {[%emt 0:00:36]} Na4 {[%emt 0:00:58]} 0-1

[Event "Marshall CC FIDE Premier April 2024"]
[Site "New York"]
[Date "2024.04.14"]
[Round "3.6"]
[White "Aravindakshan, Sahana"]
[Black "Prestia, Paris"]
[Result "1/2-1/2"]
[ECO "A65"]
[WhiteElo "1904"]
[BlackElo "2059"]
[Annotator "TA"]
[PlyCount "69"]
[EventDate "2024.02.02"]
[EventType "swiss"]
[EventCountry "USA"]
[SourceTitle "playchess.com"]
[Source "ChessBase"]
[SourceQuality "1"]
[TimeControl "5400+30"]

{[%evp 17,69,39,55,56,41,50,51,20,47,2,19,2,19,0,48,-5,0,-147,-160,-173,-177,-170,-178,-141,-150,-282,-96,-97,-61,-56,-59,-55,-60,-49,-44,-109,-55,-95,-50,-54,-57,-62,-56,-89,0,0,0,0,0,0,0,0,0,0]} 1. d4 {[%emt 0:00:01]} Nf6 {[%emt 0:02:20]} 2. c4 {[%emt 0:00:05]} g6 {[%emt 0:00:26]} 3. Nc3 {[%emt 0:00:03]} Bg7 {[%emt 0:00:06]} 4. e4 {[%emt 0:00:04]} O-O {[%emt 0:00:07]} 5. Nge2 {[%emt 0:00:03]} d6 {[%emt 0:00:33]} 6. Ng3 {[%emt 0:00:04]} c5 {[%emt 0:00:43]} 7. d5 {[%emt 0:00:03]} e6 {[%emt 0:00:03]} 8. Be2 {[%emt 0:00:05]} exd5 {[%emt 0:00:02]} 9. cxd5 {[%emt 0:00:06]} Re8 {[%emt 0:00:43][%cal Ob7b5]} 10. O-O {[%emt 0:00:09]} a6 {[%emt 0:03:33]} 11. a4 {[%emt 0:00:07]} Nbd7 {[%emt 0:00:04]} 12. f4 {[%emt 0:01:11][%cal Bf2f4,Bf4f5][%mdl 32] White is slightly better.} Qc7 {[%emt 0:02:26]} 13. e5 {[%emt 0:00:34]} dxe5 {[%emt 0:00:46]} 14. f5 $1 {[%emt 0:00:06]} e4 {[%emt 0:00:30]} 15. d6 {[%emt 0:06:49]} Qb6 {[%emt 0:02:15]} (15... Qc6 $11) 16. Bc4 {[%emt 0:13:53]} ({White should play} 16. a5 $1 $14 Qc6 17. Be3) 16... Ne5 $11 {[%emt 0:18:29]} 17. Nd5 {[%emt 0:09:30]} (17. a5 $11 Qc6 18. Bb3) 17... Nxd5 $17 {[%emt 0:00:43]} (17... Qxd6 18. fxg6 Nxd5 19. Bxd5 hxg6 (19... Nxg6 $2 20. Bxf7+ Kh8 21. Qxd6 $18) 20. Nxe4 $17) 18. Bxd5 {[%emt 0:09:39]} c4+ {[%emt 0:26:42]} (18... Qxd6 19. Bf4 Rd8 (19... gxf5 $2 20. Bxf7+ Nxf7 21. Bxd6 $18) 20. Bxe4 $15) 19. Kh1 {[%emt 0:00:14] [#]} Bxf5 $1 {[%emt 0:00:05]} 20. Nxf5 {[%emt 0:04:33]} (20. Bxe4 $2 Bxe4 21. Nxe4 Nd3 $19) (20. Rxf5 gxf5 21. Nxf5 Qf2 22. Bxe4 Ng4) 20... gxf5 {[%emt 0:01:13]} 21. Rxf5 {[%emt 0:00:26] [#]} (21. b3 $17 {is a better defense.}) 21... Qxd6 $2 {[%emt 0:00:04]} (21... Rad8 22. Bf4 Kh8 (22... Qxb2 $2 {too greedy.} 23. Rb1 $18) (22... Rxd6 23. Rxf7 Nxf7 24. Bxd6 $11) 23. Qh5 (23. Bxf7 $2 Rxd6 24. Qh5 Nxf7 $19) (23. Bxe4 Ng6 $17) 23... Qxb2 24. Rf1 $15) (21... e3 $1 $19 {and Black stays clearly on top.} 22. Be4 Rad8) 22. Bf4 {[%emt 0:20:49][%cal Od5f7] Hoping for Bxf7+!} Qg6 {[%emt 0:04:24]} 23. Rg5 {[%emt 0:01:47]} Qf6 {[%emt 0:00:02]} 24. Rxe5 $1 {[%emt 0:01:29]} Qxf4 {[%emt 0:03:19]} 25. Rxe8+ {[%emt 0:02:22]} Rxe8 {[%emt 0:00:01]} 26. Bxc4 {[%emt 0:03:00] White is weak on the dark squares} (26. Qe2 $1 $15 Be5 27. g3 Qf3+ 28. Qxf3 exf3 29. Bxc4) 26... e3 {[%emt 0:08:48]} (26... Bxb2 $17 27. Rb1 Bf6) 27. Qe2 {[%emt 0:06:16]} Be5 {[%emt 0:10:16][%csl Ge5][%cal Rf4h2]} 28. g3 {[%emt 0:00:52]} Qe4+ {[%emt 0:00:03]} 29. Kg1 {[%emt 0:00:07]} Rd8 {[%emt 0:02:01]} 30. Qh5 {[%emt 0:03:43]} e2 {[%emt 0:00:07]} ({Better is} 30... Kh8 $17 {...e2 would now be deadly.} 31. Be2 f6 (31... Bxb2 32. Rf1 $17)) 31. Qg5+ $11 {[%emt 0:01:19] The position is equal.} (31. Qxe2 Bd4+) 31... Kf8 {[%emt 0:00:28]} 32. Qxd8+ {[%emt 0:00:36]} Kg7 {[%emt 0:00:01] And now ...Bd4+ would win.} 33. Qg5+ {[%emt 0:02:26]} Kh8 {[%emt 0:00:28] ( -> ...Bd4+)} 34. Qd8+ {[%emt 0:00:32]} (34. Bxf7 $2 {leads to mate.} Bd4+) 34... Kg7 {[%emt 0:00:24] Strongly threatening ...Bd4+.} 35. Qg5+ {[%emt 0:00:25] Black had all chances to win.   Weighted Error Value: White=0.30/Black=0.26 (precise) .  Missed win:     	---       	Black=1      Mistake:       	White=4     	Black=3      Inaccurate:     	White=4     	Black=3      OK:         	White=5     	Black=10     Best:        	White=7     	Black=2      Strong:       	White=2     	Black=1} 1/2-1/2

[Event "Marshall CC FIDE Premier April 2024"]
[Site "New York"]
[Date "2024.04.14"]
[Round "3.7"]
[White "Kurup, Siddharth"]
[Black "Li, Michael"]
[Result "0-1"]
[ECO "E46"]
[WhiteElo "1914"]
[BlackElo "2072"]
[Annotator "TA"]
[PlyCount "120"]
[EventDate "2024.02.02"]
[EventType "swiss"]
[EventCountry "USA"]
[SourceTitle "playchess.com"]
[Source "ChessBase"]
[SourceQuality "1"]
[TimeControl "5400+30"]

{[%evp 17,120,0,0,0,7,9,10,-16,12,2,5,8,0,0,0,-24,-41,-60,-45,-175,-85,-110,-43,-33,-3,-10,2,-100,-109,-125,-135,-114,-127,-121,-134,-120,-131,-136,-129,-137,-122,-116,-102,-117,-108,-118,-118,-118,-111,-122,-118,-127,-123,-393,-393,-481,-481,-481,-481,-481,-474,-474,-474,-460,-460,-656,-656,-656,-656,-656,-656,-656,-656,-656,-656,-656,-656,-656,-656,-656,-656,-656,-656,-656,-656,-656,-656,-656,-656,-656,-656,-649,-642,-642,-642,-812,-673,-5103,-5103,-5102,-5095,-5081,-5065,-5052,-1089]} 1. d4 {[%emt 0:01:36]} Nf6 {[%emt 0:00:13]} 2. c4 {[%emt 0:00:20]} e6 {[%emt 0:00:06]} 3. Nc3 {[%emt 0:00:05]} Bb4 {[%emt 0:00:19]} 4. e3 {[%emt 0:00:10]} O-O {[%emt 0:00:08]} 5. Nge2 {[%emt 0:00:08]} Re8 {[%emt 0:00:17]} 6. a3 {[%emt 0:00:17]} Bf8 {[%emt 0:00:04]} 7. Ng3 {[%emt 0:00:57]} d5 {[%emt 0:00:12]} 8. Bd3 {[%emt 0:04:55]} b6 {[%emt 0:06:20]} 9. O-O {[%emt 0:07:21]} Bb7 {[%emt 0:01:18]} 10. cxd5 {[%emt 0:01:25]} exd5 {[%emt 0:00:09]} 11. b4 {[%emt 0:00:15]} Nbd7 {[%emt 0:03:06]} 12. Bb2 {[%emt 0:04:29] The position is equal.} c5 {[%emt 0:04:01]} 13. bxc5 {[%emt 0:05:02]} bxc5 {[%emt 0:00:42]} 14. dxc5 {[%emt 0:01:31]} Nxc5 {[%emt 0:01:09]} 15. Bb5 {[%emt 0:00:24]} Re6 {[%emt 0:03:12]} 16. Qc2 {[%emt 0:09:09]} Rc8 {[%emt 0:07:19]} 17. Rad1 {[%emt 0:02:32]} Qa5 {[%emt 0:07:21]} 18. Qf5 {[%emt 0:18:39]} (18. Nge2 $15) 18... a6 {[%emt 0:06:25]} (18... Rb6 $19 {[%cal Oa7a6] Strongly threatening ...a6!} 19. Rb1 a6 (19... Rxb5 $2 {is the wrong capture.} 20. Nxb5 Nfd7 21. Qg4 $18)) 19. Bd3 $17 {[%emt 0:09:39] [#]} Nxd3 {[%emt 0:02:29]} (19... g6 $1 $17 {[%cal Rg6f5]} 20. Qh3 Rb6) 20. Qxd3 $15 {[%emt 0:01:29]} Qb6 {[%emt 0:03:30]} 21. Rb1 {[%emt 0:02:08]} Qc6 {[%emt 0:04:06][%cal Od5d4]} 22. Nce2 {[%emt 0:02:43] [#]} (22. Rfc1 $11 {keeps the balance.}) 22... d4 $1 $17 {[%emt 0:13:27][%csl Gb7][%cal Rc6g2] Black keeps a firm grip on the game.} 23. e4 {[%emt 0:01:13]} (23. f3 dxe3) 23... Nxe4 {[%emt 0:02:06]} 24. Nxd4 {[%emt 0:00:50]} Qd5 {[%emt 0:01:51] Hoping for ...Nxg3.} 25. Qb3 {[%emt 0:07:03] [#] aiming for Qxd5.} Rb6 $3 {[%emt 0:08:34][%mdl 512]} 26. Qxd5 {[%emt 0:04:36]} (26. Qxb6 $2 {perishes.} Nxg3 27. f3 Bc5 $19 (27... Nxf1 $2 28. Kxf1 a5 29. Re1 $17) (27... Nxf1 $2 28. Kxf1 Rb8 29. Ne2 $17)) 26... Bxd5 {[%emt 0:00:05]} 27. Nxe4 {[%emt 0:05:33]} Bxe4 $40 {[%emt 0:00:06][%mdl 128] Black attacks with force. A strong pair of Bishops.} 28. Rbc1 {[%emt 0:00:18]} Rxc1 {[%emt 0:07:19]} 29. Bxc1 {[%emt 0:00:15]} Rb1 {[%emt 0:01:09]} 30. a4 {[%emt 0:02:41]} Rb4 {[%emt 0:03:56] Black is more active.} 31. Be3 {[%emt 0:01:07]} Rxa4 {[%emt 0:01:36]} 32. f3 {[%emt 0:00:53]} Bd5 {[%emt 0:01:13]} 33. Rc1 {[%emt 0:00:09]} Rc4 {[%emt 0:00:42]} 34. Ra1 {[%emt 0:00:35]} g6 {[%emt 0:03:39]} 35. Rxa6 $2 {[%emt 0:01:27][%mdl 8192]} (35. Ne2 $17 {keeps fighting.}) 35... Bc5 $19 {[%emt 0:00:18]} 36. Kf2 {[%emt 0:00:32]} Bb7 {[%emt 0:02:16] Black is clearly winning.} ({Weaker is} 36... Bxd4 37. Bxd4 Rxd4 38. Ra1 $19) 37. Rf6 {[%emt 0:01:27]} Bxd4 {[%emt 0:01:17]} 38. Bxd4 {[%emt 0:00:15]} Rxd4 {[%emt 0:00:04][%mdl 4096] Endgame. KRB-KR} 39. Rb6 {[%emt 0:00:15]} Rd7 {[%emt 0:00:08]} 40. Kg3 {[%emt 0:00:44]} Kg7 {[%emt 0:00:19]} 41. h4 {[%emt 0:00:12]} (41. Rb2 $142) 41... h5 {[%emt 0:00:40]} 42. Kh3 {[%emt 0:00:29]} Bd5 {[%emt 0:00:15]} 43. Kg3 {[%emt 0:00:11]} Rc7 {[%emt 0:00:49]} 44. Rd6 {[%emt 0:00:17]} Be6 {[%emt 0:00:16]} 45. Ra6 {[%emt 0:00:16]} Kf6 {[%emt 0:00:14]} 46. Ra5 {[%emt 0:00:08]} Rc2 {[%emt 0:00:31]} 47. Rb5 {[%emt 0:00:22]} Ke7 {[%emt 0:00:13]} 48. Rb7+ {[%emt 0:00:35]} Kd6 {[%emt 0:00:06]} 49. Rb5 {[%emt 0:00:16]} Bd5 {[%emt 0:00:47]} 50. Ra5 {[%emt 0:00:33]} Ke5 {[%emt 0:00:13]} 51. Ra1 {[%emt 0:00:46]} Kd4 {[%emt 0:01:52]} 52. Re1 {[%emt 0:00:42]} Kd3 {[%emt 0:00:22]} 53. Re5 {[%emt 0:01:03]} Be6 {[%emt 0:00:18]} 54. Re1 {[%emt 0:01:08]} Kd2 {[%emt 0:01:13]} 55. Re4 {[%emt 0:00:40]} Kd1 {[%emt 0:00:12]} 56. Rd4+ {[%emt 0:00:15]} Ke1 {[%emt 0:00:30] And now ...Rd2 would win.} 57. Ra4 {[%emt 0:00:17]} Ba2 {[%emt 0:00:56]} 58. Rd4 {[%emt 0:00:50]} Rd2 {[%emt 0:01:13]} 59. Re4+ {[%emt 0:03:25]} Kf1 {[%emt 0:00:07]} 60. Kf4 {[%emt 0:00:43]} Kxg2 {[%emt 0:00:51] Weighted Error Value: White=0.29 (precise) /Black=0.12 (very precise) .  Loses game:     	White=1     	---        Mistake:       	White=3     	Black=2      Inaccurate:     	White=1     	Black=2      OK:         	White=9     	Black=12     Best:        	---       	Black=3      Brilliant:      	---       	Black=1} 0-1

[Event "Marshall CC FIDE Premier April 2024"]
[Site "New York"]
[Date "2024.04.14"]
[Round "3.8"]
[White "Jiang, Jason"]
[Black "Meduri, Aakaash"]
[Result "0-1"]
[ECO "A26"]
[WhiteElo "2005"]
[BlackElo "1962"]
[Annotator "TA"]
[PlyCount "68"]
[EventDate "2024.02.02"]
[EventType "swiss"]
[EventCountry "USA"]
[SourceTitle "playchess.com"]
[Source "ChessBase"]
[SourceQuality "1"]
[TimeControl "5400+30"]

{[%evp 17,68,10,35,13,39,43,36,37,44,-16,68,44,62,16,28,8,7,8,22,13,33,2,28,-52,-52,-50,-50,-56,-47,-39,-46,-76,-42,-64,-65,-92,-32,-61,-38,-368,-372,-562,-574,-560,-570,-833,-822,-981,-925,-2843,-2495,-29995,-29996]} 1. c4 {[%emt 0:02:43]} f5 {[%emt 0:06:39]} 2. Nc3 {[%emt 0:00:50]} Nf6 {[%emt 0:02:01]} 3. g3 {[%emt 0:00:24]} d6 {[%emt 0:00:17]} 4. Bg2 {[%emt 0:00:47]} g6 {[%emt 0:00:23]} 5. d3 {[%emt 0:01:23]} Bg7 {[%emt 0:00:16]} 6. e4 {[%emt 0:01:00]} Nc6 {[%emt 0:01:02]} 7. Nge2 {[%emt 0:00:52]} O-O {[%emt 0:00:21]} 8. O-O {[%emt 0:00:32]} e5 {[%emt 0:00:49]} 9. Nd5 {[%emt 0:04:42]} h6 {[%emt 0:03:56]} 10. f3 {[%emt 0:07:55]} Be6 {[%emt 0:01:50]} 11. Be3 {[%emt 0:01:23]} Kh7 {[%emt 0:02:20]} 12. Qd2 {[%emt 0:03:11] White is slightly better.} Ne7 {[%emt 0:12:32]} 13. d4 {[%emt 0:17:59]} ({White should try} 13. Rac1 $14) 13... Neg8 {[%emt 0:09:47]} (13... fxe4 $11 14. fxe4 Ng4) 14. Nxf6+ {[%emt 0:07:12]} Nxf6 {[%emt 0:00:56]} 15. d5 {[%emt 0:01:08]} (15. exf5 $14 {might be stronger.} gxf5 16. b3) 15... Bd7 $11 {[%emt 0:01:12]} 16. h3 {[%emt 0:07:43]} Nh5 {[%emt 0:06:30][%cal Oh5g3]} 17. exf5 {[%emt 0:05:40]} gxf5 {[%emt 0:01:14][%cal Of5f4]} 18. g4 {[%emt 0:00:19]} Nf6 {[%emt 0:02:07]} 19. Bf2 {[%emt 0:05:23]} Qe8 {[%emt 0:03:16]} 20. Ng3 {[%emt 0:02:59]} (20. Rac1 $11) 20... Qg6 {[%emt 0:01:42]} 21. Rae1 {[%emt 0:00:37]} f4 {[%emt 0:03:42]} 22. Ne4 {[%emt 0:00:47]} Nxe4 {[%emt 0:01:25]} 23. Rxe4 {[%emt 0:00:19]} h5 {[%emt 0:01:14]} 24. Qd3 {[%emt 0:01:38]} Rf7 {[%emt 0:04:11]} 25. Rc1 {[%emt 0:02:35]} Rg8 {[%emt 0:01:51]} 26. Rc3 {[%emt 0:01:01]} Bf8 {[%emt 0:01:11]} (26... Bf6 $17 {[%cal Od7f5] ...Bf5! is the strong threat.} 27. Re1 Bf5 28. Qxf5 (28. gxf5 $2 Qxg2#) 28... Qxf5 29. gxf5 Rfg7) 27. Qf1 {[%emt 0:01:16]} Rfg7 {[%emt 0:03:19][%cal Od7f5]} 28. Kh2 $2 {[%emt 0:01:01][%mdl 8192] [#] Loses the game.} ({White should play} 28. Bxa7 $15 Bf5 29. Re1) 28... Qh6 $19 {[%emt 0:02:29][%cal Rh5g4]} 29. c5 {[%emt 0:03:00]} (29. Qd3 $142 Kh8 (29... hxg4 $2 30. Rxf4+ Kh8 31. Rxf8 $19) 30. Qf1) 29... hxg4 {[%emt 0:00:46]} 30. fxg4 {[%emt 0:00:07]} Bxg4 {[%emt 0:02:37]} 31. Rb4 {[%emt 0:01:15]} Bf5 {[%emt 0:01:36]} 32. Bh1 {[%emt 0:00:47]} dxc5 {[%emt 0:01:01]} 33. Rxb7 {[%emt 0:00:17]} e4 {[%emt 0:04:16] [#] ( -> ...f3)} 34. Qb1 {[%emt 0:04:16]} f3 {[%emt 0:18:42] Weighted Error Value: White=1.22/Black=0.12 (very precise) .  Loses game:     	White=1     	---        Mistake:       	White=4     	Black=2      Inaccurate:     	White=5     	Black=2      OK:         	White=5     	Black=8      Best:        	White=1     	Black=1} 0-1

[Event "Marshall CC FIDE Premier April 2024"]
[Site "New York"]
[Date "2024.04.14"]
[Round "3.9"]
[White "Patel, Maahir M"]
[Black "Zhu, Linxi"]
[Result "1/2-1/2"]
[ECO "B52"]
[WhiteElo "1879"]
[BlackElo "1980"]
[Annotator "TA"]
[PlyCount "81"]
[EventDate "2024.02.02"]
[EventType "swiss"]
[EventCountry "USA"]
[SourceTitle "playchess.com"]
[Source "ChessBase"]
[SourceQuality "1"]
[TimeControl "5400+30"]

{[%evp 24,81,32,0,16,19,41,35,60,0,0,0,0,0,0,0,0,0,0,-10,0,-7,72,0,0,-6,-7,-7,0,0,0,0,0,0,12,0,0,0,0,0,0,0,0,0,0,-21,-30,-29968,-29969,-810,0,0,0,0,0,0,0,0,0,0]} 1. e4 {[%emt 0:00:02]} c5 {[%emt 0:00:26]} 2. Nf3 {[%emt 0:00:04]} d6 {[%emt 0:00:08]} 3. Bb5+ {[%emt 0:00:24]} Bd7 {[%emt 0:00:20]} 4. Bxd7+ {[%emt 0:00:06]} Qxd7 {[%emt 0:00:06]} 5. c4 {[%emt 0:00:05]} Nf6 {[%emt 0:00:39]} 6. Nc3 {[%emt 0:00:07]} g6 {[%emt 0:00:06]} 7. O-O {[%emt 0:00:28]} Bg7 {[%emt 0:00:30]} 8. d4 {[%emt 0:00:03]} cxd4 {[%emt 0:00:08]} 9. Nxd4 {[%emt 0:00:04]} O-O {[%emt 0:00:56]} 10. f3 {[%emt 0:00:40]} Nc6 {[%emt 0:00:42]} 11. Be3 {[%emt 0:00:30]} Rac8 {[%emt 0:03:57]} 12. b3 {[%emt 0:01:56]} a6 {[%emt 0:00:22]} 13. Rc1 {[%emt 0:00:36]} Nxd4 {[%emt 0:06:06]} 14. Bxd4 {[%emt 0:05:14]} Rc6 {[%emt 0:09:32][%cal Ob7b5]} 15. Qd3 {[%emt 0:06:21]} Rfc8 {[%emt 0:04:40][%cal Ob7b5] White is slightly better.} 16. Rfd1 {[%emt 0:09:42]} (16. Rcd1 $14) 16... b5 $11 {[%emt 0:02:41]} 17. cxb5 {[%emt 0:07:29]} axb5 {[%emt 0:00:07]} 18. Ne2 {[%emt 0:02:29]} (18. Qxb5 $2 {loses.} Rxc3 19. Rxc3 Qxb5 $19) 18... b4 {[%emt 0:09:38]} 19. Qd2 {[%emt 0:02:29]} Qb7 {[%emt 0:00:48]} 20. Rxc6 {[%emt 0:01:20]} Rxc6 {[%emt 0:00:07]} 21. Rc1 {[%emt 0:00:31]} Rxc1+ {[%emt 0:00:50]} 22. Nxc1 {[%emt 0:00:44]} Qc6 {[%emt 0:03:48]} (22... e5 $11 23. Bf2 Bf8) 23. Bb2 {[%emt 0:01:43]} ({White should play} 23. Be3 $1 $16) 23... Qc5+ {[%emt 0:08:45]} 24. Kh1 {[%emt 0:12:31] [#]} Bh6 $1 {[%emt 0:09:19]} 25. Qd1 {[%emt 0:07:23]} ({But not} 25. Qxh6 Qf2 $15) 25... Bg7 {[%emt 0:09:36][%cal Of6e4] Threatens to win with ...Nxe4!} 26. Nd3 {[%emt 0:01:18]} Qb5 {[%emt 0:00:52]} 27. h3 {[%emt 0:02:02]} h5 $40 {[%emt 0:06:00][%mdl 128] Black attacks.} 28. Qc2 {[%emt 0:03:07]} h4 {[%emt 0:01:32]} 29. Qc4 {[%emt 0:00:44]} Qg5 {[%emt 0:05:05]} 30. Bc1 {[%emt 0:01:15] Inhibits Qd2.} Qa5 {[%emt 0:00:23]} 31. Nxb4 {[%emt 0:03:35]} Nh5 {[%emt 0:00:12]} 32. Be3 {[%emt 0:12:12]} Qe5 {[%emt 0:00:57] And now ...Ng3+ would win.} 33. Kg1 {[%emt 0:02:11]} Ng3 {[%emt 0:00:28]} 34. Nc2 {[%emt 0:01:30] Prevents Qa1+.} Qb2 {[%emt 0:00:22][%mdl 1024] ...Qb1+ is the strong threat. Black has compensation.} 35. b4 $2 {[%emt 0:05:28][%mdl 8192]} (35. Kf2 $11) 35... Qb1+ {[%emt 0:02:30]} 36. Kf2 {[%emt 0:00:08] [#]} Bc3 $2 {[%emt 0:01:50]} 37. Qd3 {[%emt 0:02:48] The position is equal.} (37. Qc8+ {leads to mate.} Kh7) 37... Nh1+ {[%emt 0:06:34]} 38. Ke2 {[%emt 0:00:12]} Ng3+ {[%emt 0:00:17]} 39. Kf2 {[%emt 0:00:05]} Nh1+ {[%emt 0:00:16]} 40. Ke2 {[%emt 0:00:04]} Ng3+ {[%emt 0:00:06]} 41. Kf2 {[%emt 0:11:20] Weighted Error Value: White=0.26 (precise) /Black=0.29 (precise) .  Loses game:     	White=1     	---        Mistake:       	White=2     	Black=1      OK:         	White=6     	Black=13     Best:        	---       	Black=1} 1/2-1/2